{"text_format":"1","workbook":"xlsx","n_sheets":4,"sheets":["Gestion","Lettre Base","Calcul","Gouvernement"],"not_rendered":{"charts":0,"images":0,"macros":1,"external_links":0,"defined_names":8,"comments":0,"pivot_tables":0},"unopened":[],"bounds":{"document_bytes":16777216,"sheet_cells":100000,"rows_first":2000,"rows_last":500,"rows_between":2000,"halvings":0,"cell_chars":16384,"cell_head_chars":4096},"cells_cut":0,"cells_raw":0,"read":"whole","date_system":"1900"}

{"sheet":"Gestion","index":0,"n_rows":7,"n_cols":256,"rows_kept":7,"cut":false,"hidden":false,"merged":[]}
[{"$f":"+Gouvernement!A1","v":"CALCUL DE L'AVANTAGE - AUTOMOBILE"},null,null,null,null,null,null,null,null,null,null,null,null,null,null,null,null,null,null,null,null,null,null,null,null,null,null,null,null,null,null,null,null,null,null,null,null,null,null,null,null,null,null,null,null,null,null,null,null,null,null,null,null,null,null,null,null,null,null,null,null,null,null,null,null,null,null,null,null,null,null,null,null,null,null,null,null,null,null,null,null,null,null,null,null,null,null,null,null,null,null,null,null,null,null,null,null,null,null,null,null,null,null,null,null,null,null,null,null,null,null,null,null,null,null,null,null,null,null,null,null,null,null,null,null,null,null,null,null,null,null,null,null,null,null,null,null,null,null,null,null,null,null,null,null,null,null,null,null,null,null,null,null,null,null,null,null,null,null,null,null,null,null,null,null,null,null,null,null,null,null,null,null,null,null,null,null,null,null,null,null,null,null,null,null,null,null,null,null,null,null,null,null,null,null,null,null,null,null,null,null,null,null,null,null,null,null,null,null,null,null,null,null,null,null,null,null,null,null,null,null,null,null,null,null,null,null,null,null,null,null,null,null,null,null,null,null,null,null,null,null,null,null,null,null,null,null,null,null,null,null,null,null,null,null,"coco"]
[{"$f":"+\"Année d'imposition \"&Année","v":"Année d'imposition 2020"}]
["Module de gestion",null,null,{"$f":"+Gouvernement!B1","v":"Version 2020-01 (décembre 2020)"}]
[]
["Codifications gouvernementales"]
[]
["Afficher le formulaire de saisie"]

{"sheet":"Lettre Base","index":1,"n_rows":37,"n_cols":3,"rows_kept":37,"cut":false,"hidden":true,"merged":[]}
[]
[]
[]
[]
[]
[]
[]
[null,{"$f":"+\"Le 31 décembre \"&Année","v":"Le 31 décembre 2020"}]
[]
[]
[]
[]
[]
[null,{"$f":"+\"Nom de l’entreprise : \"&C14","v":"Nom de l’entreprise : Test"},"Test"]
[]
[]
[]
[]
[]
[]
[]
[]
[]
[null,{"$f":"+\"Je, \"&C24&\" , désire me prévaloir du choix permis selon les règles sur les avantages imposables me permettant l’utilisation du 50 % des droits d’usage comme frais de fonctionnement pour l'année \"&Année&\".\"","v":"Je, Test location , désire me prévaloir du choix permis selon les règles sur les avantages imposables me permettant l’utilisation du 50 % des droits d’usage comme frais de fonctionnement pour l'année 2020."},"Test location"]
[]
[]
[]
[]
[]
[null,"_________________________________"]
[null,"Employé"]
[]
[]
[]
[]
[null,"_________________________________"]
[null,"Employeur"]

{"sheet":"Calcul","index":2,"n_rows":128,"n_cols":256,"rows_kept":128,"cut":false,"hidden":true,"merged":[]}
["Test",null,null,null,null,null,null,null,null,null,null,null,null,null,null,null,null,null,null,null,null,null,null,null,null,null,null,null,null,null,null,null,null,null,null,null,null,null,null,null,null,null,null,null,null,null,null,null,null,null,null,null,null,null,null,null,null,null,null,null,null,null,null,null,null,null,null,null,null,null,null,null,null,null,null,null,null,null,null,null,null,null,null,null,null,null,null,null,null,null,null,null,null,null,null,null,null,null,null,null,null,null,null,null,null,null,null,null,null,null,null,null,null,null,null,null,null,null,null,null,null,null,null,null,null,null,null,null,null,null,null,null,null,null,null,null,null,null,null,null,null,null,null,null,null,null,null,null,null,null,null,null,null,null,null,null,null,null,null,null,null,null,null,null,null,null,null,null,null,null,null,null,null,null,null,null,null,null,null,null,null,null,null,null,null,null,null,null,null,null,null,null,null,null,null,null,null,null,null,null,null,null,null,null,null,null,null,null,null,null,null,null,null,null,null,null,null,null,null,null,null,null,null,null,null,null,null,null,null,null,null,null,null,null,null,null,null,null,null,null,null,null,null,null,null,null,null,null,null,null,null,null,null,null,null,"lc8822"]
["Test location"]
["Nombre total de kilomètres parcourus",null,null,null,null,null,null,null,null,null,null,null,null,null,null,null,null,null,null,{"$f":"+T114","v":24000}]
["Nombre total de kilomètres parcourus à des fin personnelles",null,null,null,null,null,null,null,null,null,null,null,null,null,null,null,null,null,null,{"$f":"+T115","v":10500}]
["Nombre total de kilomètres parcourus à des fin d'affaires",null,null,null,null,null,null,null,null,null,null,null,null,null,null,null,null,null,null,13500]
["Pourcentage d'utilisation pour fin d'affaires",null,null,null,null,null,null,null,null,null,null,null,null,null,null,null,null,null,null,0.56000000000000005]
["Nombre de jours où l'automobile est utilisée par l'employé (jours disponible) - maximum 360",null,null,null,null,null,null,null,null,null,null,null,null,null,null,null,null,null,null,360]
["Coût de l'automobile incluant T.P.S. et T.V.Q.",null,null,null,null,null,null,null,null,null,null,null,null,null,null,null,null,null,null,0]
["Nombre de mois d'utilisation de L'automobile",null,null,null,null,null,null,null,null,null,null,null,null,null,null,null,null,null,null,12]
["Frais de location totaux incluant la T.P.S. et la T.V.Q. (pour toute la période pour laquelle l'automobile est détenue) excluant les frais d'assurances",null,null,null,null,null,null,null,null,null,null,null,null,null,null,null,null,null,null,{"$f":"+T121+IF(T126>0,ROUND(T125/T126*T9,0),0)","v":15000}]
["Remboursement de l'employé - Droit d'usage",null,null,null,null,null,null,null,null,null,null,null,null,null,null,null,null,null,null,0]
["Remboursement de l'employé - Frais de fonctionnement",null,null,null,null,null,null,null,null,null,null,null,null,null,null,null,null,null,null,0]
["Êtes-vous une grande entreprise ?",null,null,null,null,null,null,null,null,null,null,null,null,null,null,null,null,null,null,"Non"]
[]
["CALCUL DE L'AVANTAGE IMPOSABLE - AUTOMOBILE"]
[{"$f":"+Année","v":2020}]
[]
["PREMIÈRE ÉTAPE - DROIT D'USAGE"]
[]
[]
[null,"Calcul de la valeur de droit d'usage"]
[]
[null,"A","X","[",0.02,"X","(","C","X","D",")","+","(","2/3","X","E",")","]","="]
[null,"B"]
[]
[null,{"$f":"IF(T3=\"\",0,IF(T6<0.5,+P45,P35))","v":10500},"X","[",0.02,"X","(",{"$f":"IF(T3<>0,+T8,0)","v":0},"X",{"$f":"IF(T3=\"\",\"\",+T9)","v":12},")","+","(","2/3","X",{"$f":"IF(T3<>0,+T10,0)","v":15000},")","]","=",{"$f":"IF(T9=0,0,IF(T3=0,0,ROUND((J28+P28)*B26/B27,2)))","v":5248.95}]
[null,{"$f":"IF(T3=\"\",\"\",IF(T6<0.5,+P45,P37))","v":20004}]
[null,null,null,null,null,null,null,null,null,{"$f":"ROUND(J26*H26*Gouvernement!B3,2)","v":0},null,null,null,null,null,{"$f":"ROUND(P26*Gouvernement!B4/Gouvernement!C4,2)","v":10000}]
[]
[]
[]
[null,"Situation 1 :",null,null,"Si l'employé utilise l'automobile pour fins d'affaires à plus de 50 %"]
[]
[null,null,null,null,"A =","Nombre total de KM personnels jusqu'au maximum"]
[null,null,null,null,null,{"$f":"+\"de \"&Gouvernement!B11&\" KM\"","v":"de 20004 KM"},null,null,null,null,null,null,null,"A","=",{"$f":"IF(T3=\"\",\"\",IF(T6<0.5,0,IF(T4>Gouvernement!B11,Gouvernement!B11,+T4)))","v":10500}]
[]
[null,null,null,null,"B =","1 667 X jours disponibles",null,null,null,null,null,null,null,"B","=",{"$f":"IF(T3=\"\",\"\",IF(T6<0.5,0,ROUND(Gouvernement!B5*T7/Gouvernement!B12,0)))","v":20004}]
[null,null,null,null,null,null,30]
[]
[null,null,null,null,"Ex:","Pour 12 mois d'utilisation, B = 20 004"]
[]
[]
[null,"Situation 2 :",null,null,"Si l'employé utilise l'automobile pour fins d'affaires à moins de 50 %"]
[]
[null,null,null,null,"A =","B","1 667 X jours disponibles",null,null,null,null,null,null,"A = B ","=",{"$f":"IF(T3=\"\",\"\",IF(T6>0.5,0,ROUND(Gouvernement!B5*T7/Gouvernement!B12,0)))","v":0}]
[null,null,null,null,null,null,30]
[]
[null,null,null,null,"Ex:","Pour 12 mois d'utilisation, A = B = 20 004"]
[]
["DEUXIÈME  ÉTAPE  -  FRAIS  DE  FONCTIONNEMENT"]
[]
[null,null,null,null,null,null,"Méthode générale"]
[]
[null,null,{"$f":"+\"Nombre de kilomètres personnels X \"&TauxKm&\" $ =\"","v":"Nombre de kilomètres personnels X 0,28 $ ="},null,null,null,null,null,null,null,null,null,null,{"$f":"IF(T3=\"\",\"\",ROUND(T4*Gouvernement!B6,2))","v":2940}]
[]
[]
[]
[]
[null,null,null,null,null,null,"Méthode  simplifiée","(lorsque l'automobile sert à plus de 50% pour fin d'affaires)"]
[]
[null,null,"Moindre de :"]
[]
[null,null,"- Montant obtenue avec la méthode générale",null,null,null,null,null,null,null,null,null,null,{"$f":"IF(T3=\"\",\"\",IF(T6>0.5,N54,0))","v":2940}]
[null,null,null,null,null,null,null,null,null,null,null,null,null,{"$f":"IF(N65<N63,+N65,N63)","v":2624.4749999999999}]
[null,null,"- 50 % de la valeur du droit d'usage",null,null,null,null,null,null,null,null,null,null,{"$f":"IF(T3=\"\",\"\",IF(T6>0.5,T26*0.5,0))","v":2624.4749999999999},null,null,{"$f":"IF(ROUND(N65,2)=ROUND(T65,2),1,0)","v":1},null,null,{"$f":"IF(T3=\"\",\"\",IF(T6<=0.5,+N54,+N64))","v":2624.4749999999999}]
[]
[]
[]
[null,"Avantage total"]
[]
[null,null,"Valeur du droit d'usage",null,null,null,null,null,null,null,null,null,null,null,null,null,null,null,null,{"$f":"+T26","v":5248.95}]
[]
[null,null,"Remboursement de l'employé - Droit d'usage",null,null,null,null,null,null,null,null,null,null,null,null,null,null,null,null,{"$f":"IF(T3<>0,IF(T11>T71,-T71,-T11),0)","v":0}]
[]
[null,null,"Valeur des frais de fonctionnement",null,null,null,null,null,null,null,null,null,null,null,null,null,null,null,null,{"$f":"+T65","v":2624.4749999999999}]
[]
[null,null,"Remboursement de l'employé - Frais de fonctionnement",null,null,null,null,null,null,null,null,null,null,null,null,null,null,null,null,{"$f":"IF(T3<>0,IF(T12>T75,-T75,-T12),0)","v":0}]
[]
[null,null,"Total",null,null,null,null,null,null,null,null,null,null,null,null,null,null,null,null,{"$f":"IF(T3=0,0,+T71+T73+T75+T77)","v":7873.4249999999993}]
[]
[]
["CALCUL DE LA REMISE DES TAXES PAR L'EMPLOYEUR"]
[]
[null,"T.P.S."]
[]
[null,null,"Total de :"]
[]
[null,null,null,{"$f":"\"T.P.S reliée au droit d'usage = valeur X \"&Gouvernement!B7&\" / \"&Gouvernement!C7","v":"T.P.S reliée au droit d'usage = valeur X 4 / 104"},null,null,null,null,null,null,null,null,null,null,{"$f":"+ROUND(T71,2)&\" X  \"&Gouvernement!B7&\" / \"&Gouvernement!C7","v":"5248,95 X  4 / 104"},null,null,null,null,{"$f":"IF(T3=\"\",\"\",ROUND(T71*Gouvernement!B7/Gouvernement!C7,2))","v":201.88}]
[]
[null,null,null,{"$f":"\"T.P.S reliée aux frais de fonctionnement = valeur X \"&Gouvernement!D9&\"%\"","v":"T.P.S reliée aux frais de fonctionnement = valeur X 3%"},null,null,null,null,null,null,null,null,null,null,{"$f":"+ROUND(T75,2)&\" X  \"&Gouvernement!D9&\" %\"","v":"2624,48 X  3 %"},null,null,null,null,{"$f":"IF(T3=\"\",\"\",ROUND(T75*Gouvernement!B9,2))","v":78.73}]
[]
[null,null,null,"Total de la T.P.S. à remettre",null,null,null,null,null,null,null,null,null,null,null,null,null,null,null,{"$f":"IF(T3=\"\",\"\",+T88+T90)","v":280.61}]
[]
[]
[]
[null,"T.V.Q."]
[]
[null,null,"Total de :"]
[]
[null,null,null,{"$f":"+\"T.V.Q reliée au droit d'usage = valeur X \"&Gouvernement!B8&\" / \"&Gouvernement!C8","v":"T.V.Q reliée au droit d'usage = valeur X 9,975 / 109,975"},null,null,null,null,null,null,null,null,null,{"$f":"IF(T13=\"oui\",+ROUND(T71,2)&\" X \"&Gouvernement!B8&\" / \"&Gouvernement!C8&\" X \"&Taux_TVQ_GE*100&\" %\",+ROUND(T71,2)&\" X \"&Gouvernement!B8&\" / \"&Gouvernement!C8)","v":"5248,95 X 9,975 / 109,975"},null,null,null,null,null,{"$f":"IF(T3=\"\",\"\",IF(T13=\"oui\",ROUND(T71*Gouvernement!B8/Gouvernement!C8*Taux_TVQ_GE,2),ROUND(T71*Gouvernement!B8/Gouvernement!C8,2)))","v":476.09}]
[]
[null,null,null,{"$f":"\"T.V.Q reliée aux frais de fonctionnement = valeur X \"&Gouvernement!D10&\"%\"","v":"T.V.Q reliée aux frais de fonctionnement = valeur X 6%"},null,null,null,null,null,null,null,null,null,{"$f":"IF(T13=\"oui\",+ROUND(T75,2)&\" X \"&Gouvernement!D10&\" %\"&\" X \"&Taux_TVQ_GE*100&\" %\",+ROUND(T75,2)&\" X \"&Gouvernement!D10&\" %\")","v":"2624,48 X 6 %"},null,null,null,null,null,{"$f":"IF(T3=\"\",\"\",IF(T13=\"oui\",ROUND(T75*Gouvernement!B10*Taux_TVQ_GE,2),ROUND(T75*Gouvernement!B10,2)))","v":157.47}]
[]
[null,null,null,"Total de la T.V.Q. à remettre",null,null,null,null,null,null,null,null,null,null,null,null,null,null,null,{"$f":"IF(T3=\"\",\"\",+T100+T102)","v":633.55999999999995}]
[]
[null,null,"Note :",null,"Ces taxes doivent être remises pour la période de déclaration comprenant le dernier jour"]
[null,null,null,null,"de février suivant l'année d'imposition."]
[]
[null,null,"Aucune TVQ n'est à verser si à un moment de l'année civile, la corporation est considérée"]
[null,null,"comme une grande entreprise"]
[]
["Données"]
[]
["Nombre total de kilomètres parcourus",null,null,null,null,null,null,null,null,null,null,null,null,null,null,null,null,null,null,24000]
["Nombre total de kilomètres parcourus à des fin personnelles",null,null,null,null,null,null,null,null,null,null,null,null,null,null,null,null,null,null,{"$f":"IF(T114=0,0,+T114-T116)","v":10500}]
["Nombre total de kilomètres parcourus à des fin d'affaires",null,null,null,null,null,null,null,null,null,null,null,null,null,null,null,null,null,null,13500]
["Pourcentage d'utilisation pour fin d'affaires",null,null,null,null,null,null,null,null,null,null,null,null,null,null,null,null,null,null,{"$f":"IF(T114=0,0,ROUND(T116/T114,2))","v":0.56000000000000005}]
["Nombre de jours où l'automobile est utilisée par l'employé (jours disponible) - maximum 360",null,null,null,null,null,null,null,null,null,null,null,null,null,null,null,null,null,null,360]
["Coût de l'automobile incluant T.P.S. et T.V.Q.",null,null,null,null,null,null,null,null,null,null,null,null,null,null,null,null,null,null,0]
["Nombre de mois d'utilisation de L'automobile",null,null,null,null,null,null,null,null,null,null,null,null,null,null,null,null,null,null,12]
["Frais de location totaux incluant les taxes (pour toute la période pour laquelle l'automobile est détenue) excluant les frais d'assurances",null,null,null,null,null,null,null,null,null,null,null,null,null,null,null,null,null,null,"15000"]
["Remboursement de l'employé - Droit d'usage",null,null,null,null,null,null,null,null,null,null,null,null,null,null,null,null,null,null,0]
["Remboursement de l'employé - Frais de fonctionnement",null,null,null,null,null,null,null,null,null,null,null,null,null,null,null,null,null,null,0]
["Êtes-vous une grande entreprise ?",null,null,null,null,null,null,null,null,null,null,null,null,null,null,null,null,null,null,"Non"]
["Paiement en début de contrat ?"]
["Durée en mois du contrat de location ?"]
["Nom de l'employeur : Voir Cellule A1"]
["Nom de l'employé : Voir Cellule A2"]

{"sheet":"Gouvernement","index":3,"n_rows":22,"n_cols":5,"rows_kept":22,"cut":false,"hidden":true,"merged":[]}
["CALCUL DE L'AVANTAGE - AUTOMOBILE","Version 2020-01 (décembre 2020)"]
["Année d'imposition",2020]
["% sur le coût de l'automobile",0.02]
["Ratio pour la location",2,3]
["Kilomètres mensuels",1667]
["Taux des frais de fonctionnement - kilomètres personnels",0.28000000000000003,null,null,"https://www.fin.gc.ca/n18/18-125-fra.asp"]
["TPS pour le droit d'usage",4,104]
["TVQ pour le droit d'usage",9.9749999999999996,109.97499999999999]
["TPS sur les frais de fonctionnement",0.03,null,{"$f":"B9*100","v":3}]
["TVQ sur les frais de fonctionnement",0.06,null,{"$f":"B10*100","v":6}]
["Maximum de kilomètres personnels",{"$f":"ROUND(B5*12,0)","v":20004}]
["Nombre de jours mensuels",30]
["Grande entreprise remise TVQ",0.75]
["Code d'accès","lc8822",null,"mot de passe feuille : coco"]
[]
[]
[]
["Revenu Québec - Calcul de la TPS et de la TVQ - Taxes - Entreprises",null,null,"Voir In-203 vers la page 79"]
[]
["http://www.revenuquebec.ca/fr/sepf/publications/in/in-253.aspx"]
[]
["http://www.cra-arc.gc.ca/F/pub/tg/t4130/"]